[Event "Titled Tuesday Blitz June 6 Late 2023"]
[White "Pakleza, Zbigniew"]
[Black "Annaberdiyev, Meylis"]
[WhiteFideId "1119290"]
[BlackFideId "14000563"]
[WhiteElo "2410"]
[BlackElo "2416"]
[Result "1-0"]
[Round "5"]
[TimeControl "180+2"]
[Date "2023.06.07"]
[WhiteClock "0:00:03"]
[BlackClock "0:00:13"]
[Board "32"]

1. d4 {[%clk 0:03:00]}  Nf6 {[%clk 0:01:38]} 2. Nf3 {[%clk 0:03:00]}  g6 {[%clk 0:01:37]} 3. Bf4 {[%clk 0:03:01]}  Bg7 {[%clk 0:01:37]} 4. e3 {[%clk 0:03:01]}  d6 {[%clk 0:01:37]} 5. Be2 {[%clk 0:03:02]}  O-O {[%clk 0:01:38]} 6. h3 {[%clk 0:03:02]}  Nc6 {[%clk 0:01:38]} 7. O-O {[%clk 0:03:02]}  Ne4 {[%clk 0:01:39]} 8. Bh2 {[%clk 0:03:02]}  e5 {[%clk 0:01:39]} 9. c3 {[%clk 0:03:01]}  Qe7 {[%clk 0:01:37]} 10. Nbd2 {[%clk 0:02:52]}  Nxd2 {[%clk 0:01:36]} 11. Nxd2 {[%clk 0:02:53]}  f5 {[%clk 0:01:36]} 12. b4 {[%clk 0:02:49]}  Kh8 {[%clk 0:01:32]} 13. Nc4 {[%clk 0:02:32]}  g5 {[%clk 0:01:24]} 14. b5 {[%clk 0:02:18]}  Nd8 {[%clk 0:01:24]} 15. dxe5 {[%clk 0:02:10]}  dxe5 {[%clk 0:01:24]} 16. e4 {[%clk 0:02:10]}  f4 {[%clk 0:01:21]} 17. Bg4 {[%clk 0:01:52]}  Nf7 {[%clk 0:01:15]} 18. Qb3 {[%clk 0:01:40]}  Nd6 {[%clk 0:00:42]} 19. Nxd6 {[%clk 0:01:18]}  cxd6 {[%clk 0:00:43]} 20. Rfd1 {[%clk 0:01:10]}  f3 {[%clk 0:00:29]} 21. gxf3 {[%clk 0:01:04]}  h5 {[%clk 0:00:26]} 22. Bxh5 {[%clk 0:00:53]}  Bxh3 {[%clk 0:00:26]} 23. Qd5 {[%clk 0:00:34]}  Rad8 {[%clk 0:00:22]} 24. Bg3 {[%clk 0:00:31]}  Rf6 {[%clk 0:00:18]} 25. Bg4 {[%clk 0:00:30]}  Rh6 {[%clk 0:00:17]} 26. Bxh3 {[%clk 0:00:28]}  Rxh3 {[%clk 0:00:17]} 27. Kg2 {[%clk 0:00:29]}  Rh6 {[%clk 0:00:16]} 28. Rh1 {[%clk 0:00:28]}  Qf6 {[%clk 0:00:17]} 29. Rxh6+ {[%clk 0:00:26]}  Bxh6 {[%clk 0:00:17]} 30. Rd1 {[%clk 0:00:25]}  Rf8 {[%clk 0:00:17]} 31. Rd3 {[%clk 0:00:25]}  g4 {[%clk 0:00:14]} 32. fxg4 {[%clk 0:00:20]}  Bf4 {[%clk 0:00:14]} 33. Qxd6 {[%clk 0:00:20]}  Qg7 {[%clk 0:00:12]} 34. Qd7 {[%clk 0:00:13]}  Rf7 {[%clk 0:00:12]} 35. Qe8+ {[%clk 0:00:13]}  Kh7 {[%clk 0:00:11]} 36. Rd8 {[%clk 0:00:05]}  Bxg3 {[%clk 0:00:09]} 37. Kxg3 {[%clk 0:00:05]}  Qf6 {[%clk 0:00:08]} 38. Qg8+ {[%clk 0:00:05]}  Kh6 {[%clk 0:00:08]} 39. Qh8+ {[%clk 0:00:05]}  Qxh8 {[%clk 0:00:09]} 40. Rxh8+ {[%clk 0:00:06]}  Kg7 {[%clk 0:00:10]} 41. Re8 {[%clk 0:00:05]}  Rc7 {[%clk 0:00:09]} 42. Rxe5 {[%clk 0:00:05]}  Rxc3+ {[%clk 0:00:10]} 43. f3 {[%clk 0:00:06]}  Ra3 {[%clk 0:00:10]} 44. Re7+ {[%clk 0:00:06]}  Kf6 {[%clk 0:00:11]} 45. Rxb7 {[%clk 0:00:07]}  a5 {[%clk 0:00:11]} 46. bxa6 {[%clk 0:00:06]}  Rxa6 {[%clk 0:00:11]} 47. Kf4 {[%clk 0:00:06]}  Rxa2 {[%clk 0:00:11]} 48. g5+ {[%clk 0:00:06]}  Ke6 {[%clk 0:00:11]} 49. Rb6+ {[%clk 0:00:06]}  Kf7 {[%clk 0:00:11]} 50. Kf5 {[%clk 0:00:07]}  Ra5+ {[%clk 0:00:12]} 51. e5 {[%clk 0:00:07]}  Ra4 {[%clk 0:00:12]} 52. Rb7+ {[%clk 0:00:07]}  Kg8 {[%clk 0:00:12]} 53. f4 {[%clk 0:00:07]}  Ra6 {[%clk 0:00:13]} 54. g6 {[%clk 0:00:07]}  Rc6 {[%clk 0:00:13]} 55. Kg5 {[%clk 0:00:07]}  Rc5 {[%clk 0:00:13]} 56. Kh6 {[%clk 0:00:03]}  Rc7 {[%clk 0:00:13]} 57. Rb8+ {[%clk 0:00:03]} 1-0


[Site "https://www.chess.com"]

[Event "Titled Tuesday Blitz June 6 Late 2023"]
[White "Vlassov, Nikolai"]
[Black "Sokolovsky, Yahli"]
[WhiteFideId "4103360"]
[BlackFideId "2820242"]
[WhiteElo "2324"]
[BlackElo "2389"]
[Result "0-1"]
[Round "5"]
[TimeControl "180+2"]
[Date "2023.06.07"]
[WhiteClock "0:00:02"]
[BlackClock "0:00:02"]
[Board "34"]

1. e4 {[%clk 0:03:00]}  d6 {[%clk 0:03:00]} 2. f4 {[%clk 0:03:00]}  Nf6 {[%clk 0:03:00]} 3. Nc3 {[%clk 0:03:00]}  g6 {[%clk 0:03:00]} 4. Nf3 {[%clk 0:03:00]}  Bg7 {[%clk 0:03:00]} 5. e5 {[%clk 0:03:01]}  dxe5 {[%clk 0:03:00]} 6. fxe5 {[%clk 0:03:02]}  Nd5 {[%clk 0:03:00]} 7. Bc4 {[%clk 0:03:02]}  Nxc3 {[%clk 0:02:39]} 8. bxc3 {[%clk 0:03:02]}  O-O {[%clk 0:02:36]} 9. O-O {[%clk 0:03:01]}  Bg4 {[%clk 0:02:36]} 10. d4 {[%clk 0:03:00]}  c5 {[%clk 0:02:37]} 11. Be3 {[%clk 0:02:59]}  Nc6 {[%clk 0:02:36]} 12. Rb1 {[%clk 0:02:49]}  cxd4 {[%clk 0:02:27]} 13. cxd4 {[%clk 0:02:48]}  Bxf3 {[%clk 0:02:28]} 14. Rxf3 {[%clk 0:02:46]}  Qd7 {[%clk 0:02:23]} 15. Rxf7 {[%clk 0:02:34]}  Rxf7 {[%clk 0:02:06]} 16. e6 {[%clk 0:02:34]}  Qc7 {[%clk 0:02:06]} 17. exf7+ {[%clk 0:02:34]}  Kh8 {[%clk 0:02:07]} 18. Be6 {[%clk 0:02:15]}  Rd8 {[%clk 0:01:32]} 19. d5 {[%clk 0:02:10]}  Qe5 {[%clk 0:01:33]} 20. Bf2 {[%clk 0:02:07]}  Nd4 {[%clk 0:01:31]} 21. Bxd4 {[%clk 0:01:38]}  Qxd4+ {[%clk 0:01:32]} 22. Qxd4 {[%clk 0:01:38]}  Bxd4+ {[%clk 0:01:33]} 23. Kf1 {[%clk 0:01:38]}  b6 {[%clk 0:01:30]} 24. Ke2 {[%clk 0:01:36]}  Kg7 {[%clk 0:01:30]} 25. Kd3 {[%clk 0:01:30]}  Bc5 {[%clk 0:01:29]} 26. Rf1 {[%clk 0:01:22]}  Kf8 {[%clk 0:01:16]} 27. Kc4 {[%clk 0:01:17]}  a6 {[%clk 0:01:14]} 28. a4 {[%clk 0:01:17]}  a5 {[%clk 0:01:07]} 29. Kb5 {[%clk 0:01:15]}  Kg7 {[%clk 0:01:07]} 30. Kc6 {[%clk 0:01:12]}  Rf8 {[%clk 0:01:07]} 31. Rb1 {[%clk 0:01:02]}  Rb8 {[%clk 0:01:07]} 32. Rb5 {[%clk 0:00:57]}  Bg1 {[%clk 0:01:05]} 33. h3 {[%clk 0:00:52]}  Rd8 {[%clk 0:01:05]} 34. c4 {[%clk 0:00:39]}  Rd6+ {[%clk 0:00:50]} 35. Kc7 {[%clk 0:00:38]}  Bh2 {[%clk 0:00:46]} 36. Kb7 {[%clk 0:00:38]}  Bg1 {[%clk 0:00:47]} 37. g3 {[%clk 0:00:22]}  Kf8 {[%clk 0:00:42]} 38. h4 {[%clk 0:00:21]}  h6 {[%clk 0:00:41]} 39. Rb1 {[%clk 0:00:18]}  Bd4 {[%clk 0:00:40]} 40. g4 {[%clk 0:00:17]}  Bf2 {[%clk 0:00:35]} 41. h5 {[%clk 0:00:16]}  g5 {[%clk 0:00:35]} 42. Rf1 {[%clk 0:00:15]}  Bd4 {[%clk 0:00:34]} 43. Rf5 {[%clk 0:00:14]}  Be3 {[%clk 0:00:26]} 44. Kc7 {[%clk 0:00:15]}  Bg1 {[%clk 0:00:24]} 45. Rf3 {[%clk 0:00:13]}  Bh2 {[%clk 0:00:24]} 46. Kb7 {[%clk 0:00:13]}  Bg1 {[%clk 0:00:24]} 47. Rf1 {[%clk 0:00:13]}  Be3 {[%clk 0:00:23]} 48. Re1 {[%clk 0:00:13]}  Bd4 {[%clk 0:00:23]} 49. Rd1 {[%clk 0:00:13]}  Be3 {[%clk 0:00:23]} 50. Rd3 {[%clk 0:00:13]}  Bf2 {[%clk 0:00:22]} 51. Rb3 {[%clk 0:00:13]}  Bd4 {[%clk 0:00:20]} 52. Kc7 {[%clk 0:00:12]}  Be5 {[%clk 0:00:20]} 53. Kb7 {[%clk 0:00:12]}  Bd4 {[%clk 0:00:21]} 54. Rb1 {[%clk 0:00:09]}  Be3 {[%clk 0:00:18]} 55. Re1 {[%clk 0:00:08]}  Bf2 {[%clk 0:00:18]} 56. Re2 {[%clk 0:00:08]}  Bd4 {[%clk 0:00:18]} 57. Kc8 {[%clk 0:00:08]}  Bc5 {[%clk 0:00:17]} 58. Bd7 {[%clk 0:00:08]}  Kxf7 {[%clk 0:00:15]} 59. Be6+ {[%clk 0:00:07]}  Kf6 {[%clk 0:00:15]} 60. Re1 {[%clk 0:00:07]}  Bb4 {[%clk 0:00:08]} 61. Rf1+ {[%clk 0:00:08]}  Ke5 {[%clk 0:00:08]} 62. Rf7 {[%clk 0:00:06]}  Bc5 {[%clk 0:00:06]} 63. Rh7 {[%clk 0:00:06]}  Kd4 {[%clk 0:00:04]} 64. Rxh6 {[%clk 0:00:07]}  Kxc4 {[%clk 0:00:05]} 65. Rg6 {[%clk 0:00:07]}  Kb4 {[%clk 0:00:04]} 66. h6 {[%clk 0:00:07]}  Kxa4 {[%clk 0:00:04]} 67. h7 {[%clk 0:00:08]}  Bd4 {[%clk 0:00:05]} 68. Rxg5 {[%clk 0:00:08]}  b5 {[%clk 0:00:05]} 69. Rf5 {[%clk 0:00:05]}  b4 {[%clk 0:00:05]} 70. g5 {[%clk 0:00:05]}  Ka3 {[%clk 0:00:03]} 71. g6 {[%clk 0:00:05]}  b3 {[%clk 0:00:04]} 72. Rf3 {[%clk 0:00:04]}  Ka2 {[%clk 0:00:04]} 73. Rd3 {[%clk 0:00:02]}  Bg7 {[%clk 0:00:02]} 0-1


[Site "https://www.chess.com"]

[Event "Titled Tuesday Blitz June 6 Late 2023"]
[White "Golubev, Mikhail"]
[Black "Somalianwarrior2006"]
[WhiteFideId "14100983"]
[WhiteElo "2374"]
[BlackElo "2754"]
[Result "1-0"]
[Round "5"]
[TimeControl "180+2"]
[Date "2023.06.07"]
[WhiteClock "0:00:14"]
[BlackClock "0:00:04"]
[Board "35"]

1. e4 {[%clk 0:03:00]}  c5 {[%clk 0:02:57]} 2. Nf3 {[%clk 0:02:59]}  e6 {[%clk 0:02:57]} 3. d4 {[%clk 0:02:59]}  cxd4 {[%clk 0:02:56]} 4. Nxd4 {[%clk 0:03:00]}  Nc6 {[%clk 0:02:56]} 5. Nc3 {[%clk 0:03:00]}  Qc7 {[%clk 0:02:54]} 6. Be3 {[%clk 0:02:59]}  a6 {[%clk 0:02:53]} 7. Bd3 {[%clk 0:02:59]}  Nf6 {[%clk 0:02:51]} 8. O-O {[%clk 0:02:59]}  b5 {[%clk 0:02:35]} 9. Nxc6 {[%clk 0:02:56]}  dxc6 {[%clk 0:02:29]} 10. f4 {[%clk 0:02:44]}  e5 {[%clk 0:02:21]} 11. fxe5 {[%clk 0:02:41]}  Ng4 {[%clk 0:02:13]} 12. Bf4 {[%clk 0:02:12]}  Nxe5 {[%clk 0:01:58]} 13. Qh5 {[%clk 0:01:48]}  Bd6 {[%clk 0:01:55]} 14. Kh1 {[%clk 0:01:38]}  O-O {[%clk 0:01:49]} 15. h3 {[%clk 0:01:36]}  Ng6 {[%clk 0:01:34]} 16. Bxd6 {[%clk 0:01:34]}  Qxd6 {[%clk 0:01:34]} 17. e5 {[%clk 0:01:34]}  Qe7 {[%clk 0:01:13]} 18. Ne4 {[%clk 0:01:33]}  h6 {[%clk 0:00:42]} 19. Nf6+ {[%clk 0:01:25]}  Kh8 {[%clk 0:00:33]} 20. Bxg6 {[%clk 0:01:17]}  fxg6 {[%clk 0:00:33]} 21. Qxg6 {[%clk 0:01:17]}  gxf6 {[%clk 0:00:33]} 22. Qxh6+ {[%clk 0:01:17]}  Kg8 {[%clk 0:00:34]} 23. Rxf6 {[%clk 0:01:10]}  Rxf6 {[%clk 0:00:22]} 24. exf6 {[%clk 0:01:11]}  Qh7 {[%clk 0:00:23]} 25. Qg5+ {[%clk 0:01:08]}  Kf7 {[%clk 0:00:20]} 26. Re1 {[%clk 0:00:44]}  Be6 {[%clk 0:00:18]} 27. Qe5 {[%clk 0:00:38]}  Qf5 {[%clk 0:00:13]} 28. Qc7+ {[%clk 0:00:30]}  Kxf6 {[%clk 0:00:12]} 29. Re3 {[%clk 0:00:30]}  Rc8 {[%clk 0:00:05]} 30. Qd6 {[%clk 0:00:24]}  Qd5 {[%clk 0:00:06]} 31. Rf3+ {[%clk 0:00:22]}  Kg6 {[%clk 0:00:04]} 32. Qg3+ {[%clk 0:00:14]} 1-0


[Site "https://www.chess.com"]

[Event "Titled Tuesday Blitz June 6 Late 2023"]
[White "Principe, Alexander"]
[Black "Kushko, Dmitriy"]
[WhiteFideId "3804542"]
[BlackFideId "14162261"]
[WhiteElo "2203"]
[BlackElo "2230"]
[Result "0-1"]
[Round "5"]
[TimeControl "180+2"]
[Date "2023.06.07"]
[WhiteClock "0:00:45"]
[BlackClock "0:00:34"]
[Board "37"]

1. e4 {[%clk 0:03:00]}  g6 {[%clk 0:02:59]} 2. d4 {[%clk 0:03:00]}  Bg7 {[%clk 0:03:00]} 3. Nc3 {[%clk 0:03:01]}  d6 {[%clk 0:03:00]} 4. f4 {[%clk 0:03:01]}  a6 {[%clk 0:02:57]} 5. Nf3 {[%clk 0:03:01]}  b5 {[%clk 0:02:57]} 6. Bd3 {[%clk 0:03:01]}  Nd7 {[%clk 0:02:58]} 7. e5 {[%clk 0:03:01]}  c5 {[%clk 0:02:58]} 8. Be4 {[%clk 0:02:58]}  Rb8 {[%clk 0:02:58]} 9. exd6 {[%clk 0:02:52]}  exd6 {[%clk 0:02:41]} 10. dxc5 {[%clk 0:02:47]}  dxc5 {[%clk 0:02:20]} 11. O-O {[%clk 0:02:42]}  Ngf6 {[%clk 0:02:19]} 12. Bc6 {[%clk 0:02:28]}  O-O {[%clk 0:02:18]} 13. Bxd7 {[%clk 0:02:27]}  Qxd7 {[%clk 0:02:13]} 14. Qxd7 {[%clk 0:02:26]}  Bxd7 {[%clk 0:02:13]} 15. Ne5 {[%clk 0:02:24]}  Bf5 {[%clk 0:02:12]} 16. Nc6 {[%clk 0:02:22]}  Rbe8 {[%clk 0:02:09]} 17. a4 {[%clk 0:01:51]}  b4 {[%clk 0:02:06]} 18. Nd1 {[%clk 0:01:50]}  Bxc2 {[%clk 0:01:54]} 19. Ne3 {[%clk 0:01:50]}  Be4 {[%clk 0:01:47]} 20. Ne5 {[%clk 0:01:50]}  Rd8 {[%clk 0:01:42]} 21. b3 {[%clk 0:01:46]}  Nd5 {[%clk 0:01:39]} 22. N3c4 {[%clk 0:01:43]}  Bc2 {[%clk 0:01:25]} 23. Na5 {[%clk 0:01:37]}  f6 {[%clk 0:01:03]} 24. Nec6 {[%clk 0:01:19]}  Rde8 {[%clk 0:01:03]} 25. Bb2 {[%clk 0:01:18]}  Re2 {[%clk 0:00:58]} 26. Rf2 {[%clk 0:01:18]}  Rxf2 {[%clk 0:00:57]} 27. Kxf2 {[%clk 0:01:19]}  Nxf4 {[%clk 0:00:57]} 28. Kg3 {[%clk 0:01:05]}  Nd3 {[%clk 0:00:54]} 29. Ra2 {[%clk 0:01:02]}  Bb1 {[%clk 0:00:47]} 30. Ra1 {[%clk 0:01:02]}  Bc2 {[%clk 0:00:47]} 31. Ra2 {[%clk 0:01:02]}  Re8 {[%clk 0:00:47]} 32. Bxf6 {[%clk 0:00:53]}  Re3+ {[%clk 0:00:46]} 33. Kg4 {[%clk 0:00:52]}  Bxf6 {[%clk 0:00:36]} 34. Ne7+ {[%clk 0:00:45]}  Bxe7 {[%clk 0:00:34]} 0-1


[Site "https://www.chess.com"]

[Event "Titled Tuesday Blitz June 6 Late 2023"]
[White "Nasuta, Grzegorz"]
[Black "Jovic, Stanoje"]
[WhiteFideId "1141686"]
[BlackFideId "905020"]
[WhiteElo "2449"]
[BlackElo "2236"]
[Result "0-1"]
[Round "5"]
[TimeControl "180+2"]
[Date "2023.06.07"]
[WhiteClock "0:00:09"]
[BlackClock "0:00:20"]
[Board "38"]

1. e4 {[%clk 0:02:55]}  c6 {[%clk 0:02:59]} 2. Nc3 {[%clk 0:02:46]}  d5 {[%clk 0:02:58]} 3. Nf3 {[%clk 0:02:47]}  dxe4 {[%clk 0:02:58]} 4. Nxe4 {[%clk 0:02:48]}  Nf6 {[%clk 0:02:58]} 5. Qe2 {[%clk 0:02:48]}  Nxe4 {[%clk 0:02:58]} 6. Qxe4 {[%clk 0:02:48]}  Qd5 {[%clk 0:02:58]} 7. Qf4 {[%clk 0:02:43]}  Qf5 {[%clk 0:02:42]} 8. Qe3 {[%clk 0:02:43]}  Qxc2 {[%clk 0:02:31]} 9. Bd3 {[%clk 0:02:43]}  Qa4 {[%clk 0:02:30]} 10. O-O {[%clk 0:02:43]}  Nd7 {[%clk 0:02:19]} 11. b3 {[%clk 0:02:42]}  Qg4 {[%clk 0:02:13]} 12. h3 {[%clk 0:02:31]}  Qh5 {[%clk 0:02:10]} 13. Bb2 {[%clk 0:02:31]}  Nf6 {[%clk 0:02:06]} 14. Rfe1 {[%clk 0:01:40]}  Nd5 {[%clk 0:02:05]} 15. Qd4 {[%clk 0:01:26]}  Bxh3 {[%clk 0:01:53]} 16. Re5 {[%clk 0:01:26]}  Qg4 {[%clk 0:01:46]} 17. Rg5 {[%clk 0:01:23]}  Qxd4 {[%clk 0:01:44]} 18. Bxd4 {[%clk 0:01:24]}  Be6 {[%clk 0:01:34]} 19. Bxg7 {[%clk 0:01:23]}  Bxg7 {[%clk 0:01:32]} 20. Rxg7 {[%clk 0:01:24]}  O-O-O {[%clk 0:01:31]} 21. Ng5 {[%clk 0:01:16]}  Nf4 {[%clk 0:01:29]} 22. Nxe6 {[%clk 0:01:16]}  fxe6 {[%clk 0:01:21]} 23. Bf1 {[%clk 0:01:14]}  Rxd2 {[%clk 0:01:19]} 24. Re1 {[%clk 0:01:08]}  h5 {[%clk 0:01:14]} 25. g3 {[%clk 0:01:07]}  Nd5 {[%clk 0:01:10]} 26. Bh3 {[%clk 0:01:06]}  Rf8 {[%clk 0:01:00]} 27. Bxe6+ {[%clk 0:01:06]}  Kc7 {[%clk 0:00:51]} 28. Bxd5 {[%clk 0:01:06]}  cxd5 {[%clk 0:00:50]} 29. Rexe7+ {[%clk 0:01:04]}  Kd6 {[%clk 0:00:47]} 30. Rd7+ {[%clk 0:01:04]}  Kc5 {[%clk 0:00:46]} 31. f4 {[%clk 0:00:19]}  Re8 {[%clk 0:00:45]} 32. Rge7 {[%clk 0:00:18]}  Rxe7 {[%clk 0:00:45]} 33. Rxe7 {[%clk 0:00:19]}  Rxa2 {[%clk 0:00:45]} 34. f5 {[%clk 0:00:19]}  Ra6 {[%clk 0:00:37]} 35. Rxb7 {[%clk 0:00:18]}  Rf6 {[%clk 0:00:31]} 36. Kf2 {[%clk 0:00:10]}  Rxf5+ {[%clk 0:00:31]} 37. Ke3 {[%clk 0:00:10]}  a5 {[%clk 0:00:30]} 38. Ra7 {[%clk 0:00:08]}  Kb4 {[%clk 0:00:29]} 39. Rb7+ {[%clk 0:00:09]}  Kc3 {[%clk 0:00:28]} 40. Ke2 {[%clk 0:00:04]}  Re5+ {[%clk 0:00:26]} 41. Kd1 {[%clk 0:00:04]}  d4 {[%clk 0:00:25]} 42. Rb8 {[%clk 0:00:04]}  Rg5 {[%clk 0:00:23]} 43. Rc8+ {[%clk 0:00:02]}  Kd3 {[%clk 0:00:24]} 44. Re8 {[%clk 0:00:01]}  Rxg3 {[%clk 0:00:23]} 45. Ke1 {[%clk 0:00:02]}  Rg1+ {[%clk 0:00:23]} 46. Kf2 {[%clk 0:00:02]}  Rb1 {[%clk 0:00:23]} 47. Re5 {[%clk 0:00:02]}  Rxb3 {[%clk 0:00:22]} 48. Rxa5 {[%clk 0:00:03]}  h4 {[%clk 0:00:22]} 49. Rh5 {[%clk 0:00:03]}  Kc2 {[%clk 0:00:22]} 50. Rxh4 {[%clk 0:00:03]}  d3 {[%clk 0:00:22]} 51. Rc4+ {[%clk 0:00:03]}  Kd2 {[%clk 0:00:22]} 52. Rc8 {[%clk 0:00:03]}  Rb5 {[%clk 0:00:22]} 53. Ra8 {[%clk 0:00:03]}  Rf5+ {[%clk 0:00:22]} 54. Kg3 {[%clk 0:00:03]}  Ke2 {[%clk 0:00:21]} 55. Re8+ {[%clk 0:00:03]}  Kd1 {[%clk 0:00:22]} 56. Kg2 {[%clk 0:00:02]}  d2 {[%clk 0:00:21]} 57. Rc8 {[%clk 0:00:02]}  Ke2 {[%clk 0:00:20]} 58. Re8+ {[%clk 0:00:02]}  Kd3 {[%clk 0:00:20]} 59. Rd8+ {[%clk 0:00:03]}  Ke3 {[%clk 0:00:21]} 60. Rd7 {[%clk 0:00:03]}  Rf4 {[%clk 0:00:20]} 61. Re7+ {[%clk 0:00:02]}  Re4 {[%clk 0:00:21]} 62. Ra7 {[%clk 0:00:03]}  d1=Q {[%clk 0:00:20]} 63. Ra3+ {[%clk 0:00:04]}  Qd3 {[%clk 0:00:19]} 64. Rxd3+ {[%clk 0:00:04]}  Kxd3 {[%clk 0:00:20]} 65. Kf3 {[%clk 0:00:05]}  Kd4 {[%clk 0:00:19]} 66. Kf2 {[%clk 0:00:06]}  Re3 {[%clk 0:00:20]} 67. Kg1 {[%clk 0:00:05]}  Ke4 {[%clk 0:00:20]} 68. Kh2 {[%clk 0:00:06]}  Kf4 {[%clk 0:00:20]} 69. Kg2 {[%clk 0:00:07]}  Rf3 {[%clk 0:00:20]} 70. Kh1 {[%clk 0:00:08]}  Kg3 {[%clk 0:00:20]} 71. Kg1 {[%clk 0:00:09]}  Rf4 {[%clk 0:00:20]} 0-1


[Site "https://www.chess.com"]

[Event "Titled Tuesday Blitz June 6 Late 2023"]
[White "Horvath, Dominik"]
[Black "Prieto Aranguren, Alain"]
[WhiteFideId "1642561"]
[BlackFideId "2268906"]
[WhiteElo "2407"]
[BlackElo "2209"]
[Result "1-0"]
[Round "5"]
[TimeControl "180+2"]
[Date "2023.06.07"]
[WhiteClock "0:00:23"]
[BlackClock "0:00:14"]
[Board "39"]

1. e4 {[%clk 0:02:59]}  c6 {[%clk 0:02:54]} 2. d4 {[%clk 0:02:53]}  d5 {[%clk 0:02:54]} 3. exd5 {[%clk 0:02:53]}  cxd5 {[%clk 0:02:55]} 4. Nf3 {[%clk 0:02:54]}  Nc6 {[%clk 0:02:53]} 5. Ne5 {[%clk 0:02:49]}  Qb6 {[%clk 0:02:52]} 6. c3 {[%clk 0:02:48]}  Nf6 {[%clk 0:02:48]} 7. Na3 {[%clk 0:02:37]}  g6 {[%clk 0:02:46]} 8. Be2 {[%clk 0:02:17]}  Bg7 {[%clk 0:02:46]} 9. O-O {[%clk 0:02:17]}  O-O {[%clk 0:02:46]} 10. Nc2 {[%clk 0:02:16]}  Bf5 {[%clk 0:02:38]} 11. Ne3 {[%clk 0:02:13]}  Rac8 {[%clk 0:02:35]} 12. Nxf5 {[%clk 0:02:13]}  gxf5 {[%clk 0:02:35]} 13. Nd3 {[%clk 0:02:13]}  Ne4 {[%clk 0:02:33]} 14. f3 {[%clk 0:02:12]}  Nd6 {[%clk 0:01:46]} 15. Kh1 {[%clk 0:02:12]}  Kh8 {[%clk 0:01:44]} 16. Bf4 {[%clk 0:02:10]}  Nc4 {[%clk 0:01:38]} 17. Rb1 {[%clk 0:02:08]}  Rg8 {[%clk 0:01:36]} 18. Re1 {[%clk 0:02:07]}  e6 {[%clk 0:01:31]} 19. Bf1 {[%clk 0:02:06]}  Ne7 {[%clk 0:01:26]} 20. b3 {[%clk 0:02:04]}  Nd6 {[%clk 0:01:23]} 21. Rc1 {[%clk 0:02:01]}  Ng6 {[%clk 0:01:22]} 22. Bg3 {[%clk 0:02:01]}  Bh6 {[%clk 0:01:17]} 23. Rc2 {[%clk 0:02:00]}  f4 {[%clk 0:01:15]} 24. Bf2 {[%clk 0:02:00]}  Nf5 {[%clk 0:01:14]} 25. Ree2 {[%clk 0:01:32]}  Qd8 {[%clk 0:01:12]} 26. Qe1 {[%clk 0:01:31]}  Qg5 {[%clk 0:01:11]} 27. c4 {[%clk 0:01:20]}  Qh5 {[%clk 0:01:09]} 28. cxd5 {[%clk 0:01:12]}  Rxc2 {[%clk 0:01:00]} 29. Rxc2 {[%clk 0:01:12]}  Ng3+ {[%clk 0:00:59]} 30. Kg1 {[%clk 0:01:06]}  exd5 {[%clk 0:00:49]} 31. hxg3 {[%clk 0:01:00]}  fxg3 {[%clk 0:00:49]} 32. Bxg3 {[%clk 0:01:01]}  Bg7 {[%clk 0:00:42]} 33. Ne5 {[%clk 0:00:59]}  Qf5 {[%clk 0:00:32]} 34. Bd3 {[%clk 0:00:57]}  Qf6 {[%clk 0:00:31]} 35. Rc7 {[%clk 0:00:55]}  Rf8 {[%clk 0:00:27]} 36. Bxg6 {[%clk 0:00:48]}  hxg6 {[%clk 0:00:23]} 37. Bf2 {[%clk 0:00:48]}  Qf5 {[%clk 0:00:21]} 38. g4 {[%clk 0:00:41]}  Qf4 {[%clk 0:00:19]} 39. Be3 {[%clk 0:00:30]}  Qf6 {[%clk 0:00:17]} 40. Qg3 {[%clk 0:00:26]}  Qd6 {[%clk 0:00:14]} 41. Nxf7+ {[%clk 0:00:23]} 1-0


[Site "https://www.chess.com"]

[Event "Titled Tuesday Blitz June 6 Late 2023"]
[White "Arias Igual, Alejandro"]
[Black "Zhigalko, Sergei"]
[WhiteFideId "2254905"]
[BlackFideId "13502956"]
[WhiteElo "2179"]
[BlackElo "2626"]
[Result "0-1"]
[Round "5"]
[TimeControl "180+2"]
[Date "2023.06.07"]
[WhiteClock "0:00:54"]
[BlackClock "0:01:22"]
[Board "41"]

1. e4 {[%clk 0:02:58]}  c5 {[%clk 0:03:00]} 2. Nf3 {[%clk 0:02:57]}  Nc6 {[%clk 0:03:00]} 3. Bb5 {[%clk 0:02:56]}  Nf6 {[%clk 0:03:00]} 4. Bxc6 {[%clk 0:02:53]}  dxc6 {[%clk 0:03:00]} 5. d3 {[%clk 0:02:53]}  Bg4 {[%clk 0:03:00]} 6. h3 {[%clk 0:02:51]}  Bh5 {[%clk 0:03:00]} 7. Nc3 {[%clk 0:02:50]}  Qc7 {[%clk 0:02:58]} 8. Be3 {[%clk 0:02:46]}  Nd7 {[%clk 0:02:58]} 9. Qd2 {[%clk 0:02:32]}  e6 {[%clk 0:02:52]} 10. O-O-O {[%clk 0:02:29]}  Be7 {[%clk 0:02:52]} 11. Kb1 {[%clk 0:02:27]}  O-O-O {[%clk 0:02:44]} 12. Bf4 {[%clk 0:02:21]}  e5 {[%clk 0:02:38]} 13. Be3 {[%clk 0:02:20]}  f6 {[%clk 0:02:38]} 14. g4 {[%clk 0:02:20]}  Bf7 {[%clk 0:02:38]} 15. Ne2 {[%clk 0:02:18]}  Nf8 {[%clk 0:02:38]} 16. Ng3 {[%clk 0:02:12]}  Ne6 {[%clk 0:02:34]} 17. Qe2 {[%clk 0:02:05]}  Nd4 {[%clk 0:02:25]} 18. Bxd4 {[%clk 0:02:04]}  cxd4 {[%clk 0:02:26]} 19. Nd2 {[%clk 0:02:01]}  Rhe8 {[%clk 0:02:17]} 20. Rhf1 {[%clk 0:01:50]}  Qa5 {[%clk 0:02:07]} 21. Nb3 {[%clk 0:01:42]}  Qc7 {[%clk 0:02:00]} 22. Nf5 {[%clk 0:01:40]}  Bf8 {[%clk 0:01:59]} 23. f4 {[%clk 0:01:39]}  g6 {[%clk 0:01:56]} 24. Nh4 {[%clk 0:01:35]}  exf4 {[%clk 0:01:55]} 25. Nf3 {[%clk 0:01:36]}  Qb6 {[%clk 0:01:32]} 26. Qd2 {[%clk 0:01:32]}  g5 {[%clk 0:01:31]} 27. h4 {[%clk 0:01:30]}  h6 {[%clk 0:01:31]} 28. hxg5 {[%clk 0:01:27]}  hxg5 {[%clk 0:01:31]} 29. Rh1 {[%clk 0:01:23]}  Bb4 {[%clk 0:01:28]} 30. Qf2 {[%clk 0:01:16]}  a5 {[%clk 0:01:28]} 31. Nbxd4 {[%clk 0:00:54]}  Bc3 {[%clk 0:01:22]} 0-1


[Site "https://www.chess.com"]